bitfinex-derivatives/quotes_ETHF0:USTF0_20250322
["timestamp","ask_amount","ask_price","bid_price","bid_amount"]
[1742617951400,2.96669882,1988.3,1988.2,3.2078]
[1742617952608,2.96669882,1988.3,1988.2,4.21411]
[1742617952811,2.96669882,1988.3,1988.2,3.2078]
[1742617953511,2.96669882,1988.3,1988.2,4.5476]
[1742617954311,2.96669882,1988.3,1988.2,5.55391]
[1742617955409,1.96043882,1988.3,1988.2,5.55391]
[1742617955612,1.29823882,1988.3,1988.2,5.55391]
[1742617955908,0.00753882,1988.3,1988.2,5.55391]
[1742617956613,0.00753882,1988.3,1988.2,8.73891]
[1742617969015,1.36613882,1988.3,1988.2,8.73891]
[1742617970432,0.00753882,1988.3,1988.2,8.73891]
[1742617973120,0.00753882,1988.3,1988.2,9.37820539]
[1742617975331,0.00753882,1988.3,1988.2,8.73891]
[1742617979536,1.36443882,1988.3,1988.2,8.73891]
[1742617980836,0.00753882,1988.3,1988.2,8.73891]
[1742617981135,0.00753882,1988.3,1988.2,9.37835918]
[1742617981536,1.36443882,1988.3,1988.2,9.37835918]
[1742617982332,1.36443882,1988.3,1988.2,8.73891]
[1742617983535,1.36443882,1988.3,1988.2,9.37874349]
[1742617984134,1.36443882,1988.3,1988.2,6.17094349]
[1742617984331,1.36443882,1988.3,1988.2,9.37874349]
[1742617986139,11.37537657,1989.1,1988.8,1.00596]
[1742617986439,0.6684,1989.0,1988.9,4.5443]
[1742617986740,0.6684,1989.0,1988.9,5.55026]
[1742617987242,0.6684,1989.0,1988.9,8.73526]
[1742617988143,0.6684,1989.0,1988.9,9.37846]
[1742617989245,2.6879,1989.0,1988.9,9.37846]
[1742617992037,2.6879,1989.0,1988.9,8.73526]
[1742617992648,2.6879,1989.0,1988.9,8.73426]
[1742618004148,2.6879,1989.0,1988.9,5.52646]
[1742618004345,2.6879,1989.0,1988.9,8.73426]
[1742618006757,0.00753882,1989.1,1989.0,1.00591]
[1742618006954,0.00753882,1989.1,1989.0,2.95281]
[1742618007155,1.36623882,1989.1,1989.0,2.95281]
[1742618007759,2.05183882,1989.1,1989.0,2.95281]
[1742618009451,0.00753882,1989.1,1989.0,2.95281]
[1742618009646,0.00753882,1989.1,1989.0,3.63751]
[1742618012356,0.00753882,1989.1,1989.0,6.84531]
[1742618022073,0.00753882,1989.1,1989.0,7.48457271]
[1742618022969,0.00753882,1989.1,1989.0,6.84531]
[1742618025973,1.39863882,1989.1,1989.0,6.84531]
[1742618028672,1.39863882,1989.1,1989.0,5.50141]
[1742618032283,1.39863882,1989.1,1989.0,8.68441]
[1742618036480,0.00753882,1989.1,1989.0,8.68441]
[1742618036779,0.00753882,1989.1,1989.0,9.32427426]
[1742618037377,1.28943882,1989.1,1989.0,9.32427426]
[1742618044791,1.28943882,1989.1,1989.0,8.68441]
[1742618051197,1.28943882,1989.1,1989.0,5.50141]
[1742618051793,1.28943882,1989.1,1988.8,4.22132882]
[1742618052000,1.68893,1989.0,1988.9,1.2842]
[1742618052788,0.683,1989.0,1988.9,1.2842]
[1742618052994,0.683,1989.0,1988.9,2.29016]
[1742618053192,2.0508,1989.0,1988.9,2.29016]
[1742618053398,3.05671,1989.0,1988.9,2.29016]
[1742618053593,2.0508,1989.0,1988.9,2.29016]
[1742618055600,3.05671,1989.0,1988.9,1.2842]
[1742618056801,2.0508,1989.0,1988.9,2.29016]
[1742618057605,2.0508,1989.0,1988.9,2.94156]
[1742618059910,3.05671,1989.0,1988.9,2.94156]
[1742618060909,3.05671,1989.0,1988.9,1.9356]
[1742618063716,2.0508,1989.0,1988.9,2.94156]
[1742618066109,2.0508,1989.0,1988.9,1.9356]
[1742618066408,2.0508,1989.0,1988.9,2.94156]
[1742618067310,3.05671,1989.0,1988.9,2.94156]
[1742618067510,3.05671,1989.0,1988.9,1.9356]
[1742618067709,3.05671,1989.0,1988.9,1.2842]
[1742618069913,3.05671,1989.0,1988.9,2.29016]
[1742618070106,2.0508,1989.0,1988.9,2.29016]
[1742618070815,3.05671,1989.0,1988.9,2.29016]
[1742618071706,1.68891,1989.0,1988.9,2.29016]
[1742618071908,2.97581,1989.0,1988.9,2.29016]
[1742618074216,1.9699,1989.0,1988.9,2.29016]
[1742618074810,0.00753882,1989.1,1989.0,1.00591]
[1742618075007,0.00753882,1989.1,1989.0,4.87921]
[1742618075511,0.00753882,1989.1,1989.0,9.39321]
[1742618076418,1.01339882,1989.1,1989.0,6.18541]
[1742618076715,3.69389882,1989.1,1989.0,6.18541]
[1742618077110,3.69389882,1989.1,1989.0,1.9965]
[1742618077311,3.69389882,1989.1,1989.0,1.331]
[1742618084526,4.47991104,1989.1,1989.0,1.331]
[1742618085133,3.69389882,1989.1,1989.0,2.33691]
[1742618087431,3.69389882,1989.1,1989.0,1.331]
[1742618088129,3.69389882,1989.1,1989.0,2.33691]
[1742618088527,3.69389882,1989.1,1989.0,1.331]
[1742618091527,3.69389882,1989.1,1989.0,2.33691]
[1742618095540,3.69389882,1989.1,1989.0,1.331]
[1742618101535,1.00591,1989.0,1988.9,3.2078]
[1742618101737,2.36891,1989.0,1988.9,4.5661]
[1742618105942,2.36891,1989.0,1988.9,1.3583]
[1742618106944,3.15501259,1989.0,1988.9,1.3583]
[1742618107341,2.36891,1989.0,1988.9,1.3583]
[1742618110747,2.36891,1989.0,1988.9,2.36426]
[1742618110949,1.363,1989.0,1988.9,3.03926]
[1742618111251,2.36891,1989.0,1988.9,3.03926]
[1742618114244,1.363,1989.0,1988.9,3.03926]
[1742618115341,6.67603882,1989.1,1988.9,3.03926]
[1742618115652,5.97553882,1989.1,1989.0,2.34951]
[1742618117950,0.00753882,1989.1,1989.0,2.34951]
[1742618118151,1.01339882,1989.1,1989.0,2.34951]
[1742618119752,0.00753882,1989.1,1989.0,2.34951]
[1742618120059,1.01339882,1989.1,1989.0,2.34951]
[1742618121862,2.35129882,1989.1,1989.0,1.3436]
[1742618125251,2.35129882,1989.1,1989.0,2.34951]
[1742618125457,2.35129882,1989.1,1989.0,1.3436]
[1742618125658,2.35129882,1989.1,1989.0,2.34951]
[1742618125852,1.01339882,1989.1,1989.0,2.34951]
[1742618126563,1.01339882,1989.1,1989.0,1.3436]
[1742618127358,2.29979882,1989.1,1989.0,1.3436]
[1742618134364,2.97259882,1989.1,1989.0,1.3436]
[1742618143678,1.00596,1988.9,1988.8,3.21533882]
[1742618144378,1.65766,1988.9,1988.8,3.21533882]
[1742618144774,1.65766,1988.9,1988.8,0.00753882]
[1742618144975,3.78411939,1988.9,1988.8,0.00753882]
[1742618147181,9.75211939,1988.9,1988.8,0.00753882]
[1742618147878,9.7514836,1988.9,1988.8,0.00753882]
[1742618148086,8.96576,1988.9,1988.8,0.00753882]
[1742618148285,11.26030634,1988.9,1988.4,4.214]
[1742618148584,1.00616,1988.5,1988.4,3.2078]
[1742618149982,2.41506,1988.5,1988.4,4.5128]
[1742618155882,6.97413,1988.6,1988.5,1.00616]
[1742618156087,5.968,1988.6,1988.5,3.11496]
[1742618156487,5.968,1988.6,1988.5,6.29796]
[1742618158982,1.00606,1988.7,1988.6,1.00611]
[1742618159183,1.00606,1988.7,1988.6,6.27441]
[1742618160793,1.00605,1988.8,1988.6,6.27441]
[1742618160994,1.00605,1988.8,1988.7,1.3776]
[1742618161297,1.00605,1988.8,1988.7,2.38366]
[1742618162788,3.63377,1988.9,1988.8,1.00601]
[1742618162988,3.63377,1988.9,1988.8,2.32721]
[1742618165399,2.6278,1988.9,1988.8,2.32721]
[1742618165590,3.63376,1988.9,1988.8,2.32721]
[1742618167798,1.00596,1988.9,1988.8,2.32721]
[1742618168296,10.15695,1989.0,1988.9,1.00596]
[1742618168492,5.968,1989.0,1988.9,3.05916]
[1742618168891,6.97391,1989.0,1988.9,3.05916]
[1742618169386,8.25151,1989.0,1988.9,3.05916]
[1742618170696,8.25151,1989.0,1988.9,2.0532]
[1742618171993,8.25151,1989.0,1988.9,1.3604]
[1742618172194,9.03630797,1989.0,1988.9,1.3604]
[1742618178310,8.25151,1989.0,1988.9,1.3604]
[1742618179205,6.97391,1989.0,1988.9,3.67406]
[1742618179408,1.00591,1989.0,1988.9,3.67406]
[1742618179799,2.40091,1989.0,1988.9,3.67406]
[1742618181015,2.40091,1989.0,1988.9,2.0151]
[1742618182294,2.40091,1989.0,1988.9,1.3604]
[1742618189012,1.00606,1988.7,1988.6,7.39588]
[1742618190311,1.00606,1988.7,1988.6,8.69438]
[1742618190916,1.00606,1988.7,1988.6,7.6883]
[1742618191116,1.00606,1988.7,1988.6,8.69441]
[1742618191117,2.27766,1988.7,1988.6,8.69441]
[1742618191322,2.27766,1988.7,1988.6,7.6883]
[1742618192314,2.27766,1988.7,1988.6,1.2985]
[1742618192510,1.00621,1988.4,1988.3,6.39733882]
[1742618192710,1.00621,1988.4,1988.3,7.68203882]
[1742618193018,1.00621,1988.4,1988.3,1.29223882]
[1742618193412,2.95881,1988.4,1988.3,1.29223882]
[1742618198519,1.00641,1988.0,1987.9,3.182]
[1742618199819,2.36721,1988.0,1987.9,4.18846]
[1742618200220,2.36721,1988.0,1987.9,3.182]
[1742618201822,2.36721,1988.0,1987.9,4.5433]
[1742618204013,1.00641,1988.0,1987.9,4.5433]
[1742618207623,1.00638,1988.1,1987.9,4.5433]
[1742618207926,1.00638,1988.1,1988.0,4.4901]
[1742618208124,1.00634,1988.2,1988.0,5.49648]
[1742618208428,1.2836,1988.3,1988.1,6.83786]
[1742618208429,1.00629,1988.3,1988.1,6.83786]
[1742618208728,1.00629,1988.3,1988.2,5.49641]
[1742618209227,1.00629,1988.3,1988.2,4.4901]
[1742618210921,1.00629,1988.3,1988.2,1.2823]
[1742618220132,1.00636,1988.1,1988.0,4.21418]
[1742618221239,1.00636,1988.1,1988.0,3.2078]
[1742618221433,2.38186,1988.1,1988.0,4.5804]
[1742618222033,2.38186,1988.1,1988.0,5.58681]
[1742618222633,2.38186,1988.1,1988.0,4.5804]
[1742618227748,2.38186,1988.1,1988.0,5.58681]
[1742618228149,2.38186,1988.1,1988.0,4.5804]
[1742618231642,2.38186,1988.1,1988.0,5.58681]
[1742618231843,2.38186,1988.1,1988.0,4.5804]
[1742618232047,1.3724,1988.2,1988.1,1.00636]
[1742618232249,1.2857,1988.2,1988.1,2.32036]
[1742618232547,2.29201,1988.2,1988.1,3.01616]
[1742618233850,1.0063,1988.3,1988.1,2.0098]
[1742618234152,2.292,1988.3,1988.2,1.314]
[1742618234353,2.292,1988.3,1988.2,1.9623]
[1742618235251,2.292,1988.3,1988.2,2.96861]
[1742618240159,1.0063,1988.3,1988.2,2.96861]
[1742618240457,3.77135002,1988.4,1988.3,1.00626]
[1742618240654,3.77135002,1988.4,1988.3,2.39446]
[1742618240855,3.77135002,1988.4,1988.3,1.3882]
[1742618241263,2.98474,1988.4,1988.3,1.3882]
[1742618242054,1.9785,1988.4,1988.3,2.39446]
[1742618242255,2.28761,1988.4,1988.3,2.39446]
[1742618242455,6.6534,1988.5,1988.4,1.00621]
[1742618242656,1.39,1988.6,1988.5,1.00616]
[1742618242857,9.151,1988.7,1988.4,5.9738]
[1742618242858,5.968,1988.7,1988.6,1.00611]
[1742618243159,5.968,1988.7,1988.6,4.21391]
[1742618243160,6.97406,1988.7,1988.6,4.21391]
[1742618247066,1.00606,1988.7,1988.6,4.21391]
[1742618248669,1.00606,1988.7,1988.6,3.2078]
[1742618250266,1.00606,1988.7,1988.6,4.5356]
[1742618252660,1.00606,1988.7,1988.6,5.54171]
[1742618253164,1.00606,1988.7,1988.6,2.33391]
[1742618254567,1.00606,1988.7,1988.6,1.3278]
[1742618256373,3.21533882,1989.1,1988.6,4.5098]
[1742618256564,2.32552,1989.0,1988.9,1.00591]
[1742618256763,2.32552,1989.0,1988.8,4.18799]
[1742618256764,2.32556,1989.0,1988.8,4.18799]
[1742618257072,2.32556,1989.0,1988.8,5.51189]
[1742618257271,1.00596,1989.0,1988.9,1.3239]
[1742618260571,1.00596,1989.0,1988.9,2.32986]
[1742618261276,1.00596,1989.0,1988.9,5.53766]
[1742618261476,0.00753882,1989.1,1989.0,1.00591]
[1742618261777,0.00753882,1989.1,1989.0,6.90201]
[1742618263878,1.01339882,1989.1,1989.0,6.90201]
[1742618264282,1.01339882,1989.1,1989.0,5.8961]
[1742618265078,1.01339882,1989.1,1989.0,6.90201]
[1742618268283,1.01339882,1989.1,1989.0,4.5915]
[1742618269185,1.01339882,1989.1,1989.0,5.2285]
[1742618269884,1.01339882,1989.1,1989.0,6.23441]
[1742618270481,1.01339882,1989.1,1989.0,5.2285]
[1742618271782,1.01339882,1989.1,1989.0,2.0475]
[1742618272085,2.35249882,1989.1,1989.0,1.4105]
[1742618281294,2.35249882,1989.1,1989.0,2.41641]
[1742618281786,2.35249882,1989.1,1989.0,1.4105]
[1742618283192,2.35249882,1989.1,1989.0,2.41641]
[1742618286591,3.63349882,1989.1,1989.0,2.41641]
[1742618289902,2.62763882,1989.1,1989.0,2.41641]
[1742618290102,0.00753882,1989.1,1989.0,3.06941]
[1742618290695,1.40273882,1989.1,1989.0,3.06941]
[1742618291601,1.40273882,1989.1,1989.0,2.41641]
[1742618292394,0.00753882,1989.1,1989.0,2.41641]
[1742618296403,1.39853882,1989.1,1989.0,2.41641]
[1742618310412,2.08373882,1989.1,1989.0,2.41641]
[1742618313317,3.08959882,1989.1,1989.0,5.62421]
[1742618313620,2.08373882,1989.1,1989.0,5.62421]
[1742618318525,0.00753882,1989.1,1989.0,5.62421]
[1742618320430,0.00753882,1989.1,1989.0,6.26484458]
[1742618320827,0.00753882,1989.1,1989.0,5.62421]
[1742618335235,0.00753882,1989.1,1989.0,6.2643277]
[1742618336329,0.00753882,1989.1,1989.0,5.62421]
[1742618338028,0.00753882,1989.1,1989.0,2.41641]
[1742618338230,0.00753882,1989.1,1989.0,5.62421]
[1742618343135,0.00753882,1989.1,1989.0,6.26482336]
[1742618344639,0.00753882,1989.1,1989.0,5.62421]
[1742618344838,0.00753882,1989.1,1989.0,6.26491907]
[1742618346041,0.66163882,1989.1,1989.0,5.62421]
[1742618348644,0.66163882,1989.1,1989.0,6.26529949]
[1742618351444,0.66163882,1989.1,1989.0,5.62421]
[1742618355048,0.66163882,1989.1,1989.0,2.41641]
[1742618355350,0.00753882,1989.1,1989.0,5.62421]
[1742618358152,0.00753882,1989.1,1989.0,6.26530639]
[1742618360251,5.968,1989.5,1989.4,1.00571]
[1742618360451,1.3417,1989.4,1989.3,7.39256]
[1742618360648,1.3417,1989.4,1989.3,9.42126]
[1742618362152,0.00753882,1989.5,1989.4,1.00571]
[1742618362356,1.34923882,1989.5,1989.4,3.04381]
[1742618367945,1.34923882,1989.5,1989.4,2.38981]
[1742618368147,1.34923882,1989.5,1989.4,5.56881]
[1742618368346,1.34923882,1989.5,1989.4,4.18471]
[1742618368752,1.34923882,1989.5,1989.4,5.56591]
[1742618371449,1.34923882,1989.5,1989.4,1.00571]
[1742618371450,2.35488882,1989.5,1989.4,1.00571]
[1742618371845,1.34923882,1989.5,1989.4,1.00571]
[1742618373248,2.35488882,1989.5,1989.4,1.00571]
[1742618374256,1.34923882,1989.5,1989.4,1.00571]
[1742618374659,1.34923882,1989.5,1989.4,2.34601]
[1742618375158,2.35488882,1989.5,1989.4,2.34601]
[1742618375458,1.34923882,1989.5,1989.4,2.34601]
[1742618375663,2.35488882,1989.5,1989.4,2.34601]
[1742618375962,1.34923882,1989.5,1989.4,2.34601]
[1742618376152,2.35488882,1989.5,1989.4,2.34601]
[1742618376955,2.35488882,1989.5,1989.4,1.3403]
[1742618378954,2.35488882,1989.5,1989.4,2.34601]
[1742618379455,2.35488882,1989.5,1989.4,1.3403]
[1742618379767,2.35492882,1989.5,1989.4,1.00571]
[1742618380856,1.00571,1989.4,1989.3,2.28922]
[1742618381056,3.04081,1989.4,1989.3,2.28922]
[1742618382872,3.04081,1989.4,1989.3,1.2835]
[1742618383361,1.00576,1989.3,1989.2,3.21533882]
[1742618383558,2.99226,1989.3,1989.2,4.57473882]
[1742618384161,2.99226,1989.3,1989.2,5.58054882]
[1742618384759,2.99226,1989.3,1989.2,3.21533882]
[1742618385359,2.99226,1989.3,1989.2,4.60623882]
[1742618387868,2.99226,1989.3,1989.2,5.61204882]
[1742618388566,2.99226,1989.3,1989.2,4.60623882]
[1742618390367,2.99226,1989.3,1989.2,3.21533882]
[1742618390564,2.99226,1989.3,1989.2,0.00753882]
[1742618391369,2.99226,1989.3,1989.2,1.27803882]
[1742618392080,2.99226,1989.3,1989.2,0.00753882]
[1742618393177,6.17026,1989.3,1989.2,0.00753882]
[1742618393581,12.13826,1989.3,1989.2,0.00753882]
[1742618394080,1.00606,1988.7,1988.6,3.2078]
[1742618394285,2.51488,1989.0,1988.5,1.00615]
[1742618394286,3.178,1988.8,1988.5,1.00615]
[1742618394589,2.3816,1988.7,1988.5,1.00615]
[1742618394979,2.38158,1988.7,1988.4,0.6987]
[1742618395184,2.3816,1988.7,1988.5,1.00615]
[1742618395379,2.3816,1988.7,1988.6,1.3155]
[1742618396578,3.6581,1988.7,1988.6,1.3155]
[1742618397688,9.6261,1988.7,1988.6,1.3155]
[1742618407595,1.00621,1988.4,1988.3,3.2078]
[1742618408191,2.29731,1988.4,1988.3,3.2078]
[1742618408997,3.69771,1988.4,1988.3,4.5787]
[1742618412897,3.69771,1988.4,1988.3,1.3709]
[1742618413098,1.00636,1988.1,1988.0,3.8549]
[1742618413404,1.00636,1988.1,1988.0,4.5424]
[1742618413606,1.00636,1988.1,1988.0,5.54881]
[1742618414499,2.32536,1988.1,1988.0,6.89031]
[1742618416606,2.32536,1988.1,1988.0,5.8839]
[1742618416807,2.32536,1988.1,1988.0,6.89031]
[1742618419210,2.32536,1988.1,1988.0,5.8839]
[1742618419412,2.32536,1988.1,1988.0,6.89031]
[1742618419602,2.32536,1988.1,1988.0,5.8839]
[1742618421511,2.32536,1988.1,1988.0,6.89031]
[1742618421713,2.32536,1988.1,1988.0,5.8839]
[1742618421918,2.32536,1988.1,1988.0,5.2368]
[1742618422212,3.63106,1988.1,1988.0,5.2368]
[1742618424414,3.63106,1988.1,1988.0,6.24321]
[1742618425016,3.63106,1988.1,1988.0,5.2368]
[1742618425814,3.63106,1988.1,1988.0,2.029]
[1742618427919,3.63106,1988.1,1988.0,3.03541]
[1742618428617,3.63106,1988.1,1988.0,2.029]
[1742618428820,3.63106,1988.1,1988.0,3.03541]
[1742618429015,3.63106,1988.1,1988.0,2.029]
[1742618429214,3.63106,1988.1,1988.0,3.03541]
[1742618430122,3.63106,1988.1,1988.0,1.3415]
[1742618430310,6.81106,1988.1,1988.0,1.3415]
[1742618430514,1.00646,1987.9,1987.8,3.8898]
[1742618430713,1.00646,1987.9,1987.8,5.1888]
[1742618434422,1.00646,1987.9,1987.8,6.19531]
[1742618435324,6.6203,1988.1,1987.8,5.1888]
[1742618435622,6.97441,1988.1,1988.0,1.00641]
[1742618436021,6.97441,1988.1,1988.0,1.65011]
[1742618436826,8.35241,1988.1,1988.0,0.6437]
[1742618437527,2.38441,1988.1,1988.0,0.6437]
[1742618437925,2.38441,1988.1,1988.0,1.65011]
[1742618438720,2.38441,1988.1,1988.0,0.6437]
[1742618439118,2.38441,1988.1,1988.0,1.3433]
[1742618439921,2.38441,1988.1,1988.0,2.667]
[1742618441626,1.00641,1988.1,1988.0,3.67341]
[1742618442726,1.00641,1988.1,1988.0,2.667]
[1742618442919,2.34421,1988.1,1988.0,2.667]
[1742618443520,1.00641,1988.1,1988.0,3.67341]
[1742618444224,2.34421,1988.1,1988.0,3.67341]
[1742618444429,2.34421,1988.1,1988.0,2.667]
[1742618446225,2.34421,1988.1,1988.0,3.67341]
[1742618446425,2.34421,1988.1,1988.0,2.0233]
[1742618446626,2.34421,1988.1,1988.0,1.3237]
[1742618449032,2.34421,1988.1,1988.0,2.0]
[1742618461437,5.97553882,1988.2,1988.1,1.00636]
[1742618461628,0.00753882,1988.2,1988.1,3.05856]
[1742618461829,0.00753882,1988.2,1988.1,6.23856]
[1742618462131,3.2078,1988.8,1988.4,2.51554]
[1742618462330,3.2078,1988.8,1988.7,1.00606]
[1742618462331,4.21381,1988.8,1988.7,1.00606]
[1742618462637,1.00611,1988.6,1988.5,2.751]
[1742618462944,1.00609,1988.7,1988.6,1.00608]
[1742618463138,1.01362882,1988.7,1988.6,1.00608]
[1742618464344,1.01362882,1988.7,1988.5,5.54852]
[1742618464536,2.34112882,1988.7,1988.5,5.54852]
[1742618464738,1.33503882,1988.7,1988.5,5.54852]
[1742618464935,2.34111882,1988.7,1988.6,1.00611]
[1742618465646,1.33503882,1988.7,1988.6,1.00611]
[1742618465840,0.00753882,1988.7,1988.6,1.00611]
[1742618468145,1.00611,1988.6,1988.5,2.36854]
[1742618468344,2.39674882,1988.7,1988.6,1.00611]
[1742618469544,1.39063882,1988.7,1988.6,1.00611]
[1742618470948,2.39669882,1988.7,1988.6,1.00611]
[1742618476051,1.39063882,1988.7,1988.6,1.00611]
[1742618476252,2.39669882,1988.7,1988.6,1.00611]
[1742618477355,3.04849882,1988.7,1988.6,1.00611]
[1742618477652,2.04243882,1988.7,1988.6,2.33821]
[1742618478452,1.39063882,1988.7,1988.6,2.33821]
[1742618478652,0.00753882,1988.7,1988.6,2.33821]
[1742618480355,1.39153882,1988.7,1988.6,2.33821]
[1742618485255,0.00753882,1988.7,1988.6,2.33821]
[1742618488256,1.30633882,1988.7,1988.6,2.33821]
[1742618489757,2.31239882,1988.7,1988.6,2.33821]
[1742618490461,2.31239882,1988.7,1988.6,1.3321]
[1742618490863,2.31239882,1988.7,1988.6,2.33821]
[1742618495862,1.30633882,1988.7,1988.6,2.33821]
[1742618496853,2.31239882,1988.7,1988.6,2.33821]
[1742618497266,1.00612,1988.6,1988.5,1.00613]
[1742618497457,3.08182,1988.6,1988.5,2.41283]
[1742618497664,2.0757,1988.6,1988.5,2.41283]
[1742618498861,3.08181,1988.6,1988.5,2.41283]
[1742618500361,2.0757,1988.6,1988.5,2.41283]
[1742618500561,3.08181,1988.6,1988.5,2.41283]
[1742618501855,2.0757,1988.6,1988.5,2.41283]
[1742618503160,1.39,1988.6,1988.5,2.41283]
[1742618503362,1.39,1988.6,1988.5,3.11603]
[1742618503567,0.00753882,1988.7,1988.6,1.00611]
[1742618503760,0.00753882,1988.7,1988.6,3.03121]
[1742618505070,0.00753882,1988.7,1988.6,6.20921]
[1742618513374,0.00753882,1988.7,1988.6,6.84922769]
[1742618513769,1.35623882,1988.7,1988.6,6.84922769]
[1742618514066,1.35623882,1988.7,1988.6,6.20921]
[1742618517867,0.00753882,1988.7,1988.6,6.20921]
[1742618523081,1.39833882,1988.7,1988.6,6.20921]
[1742618523281,2.04153882,1988.7,1988.6,6.20921]
[1742618524975,2.04153882,1988.7,1988.6,5.50691]
[1742618550390,2.04153882,1988.7,1988.6,2.96771]
[1742618563198,3.04759882,1988.7,1988.6,1.3238]
[1742618565608,3.04759882,1988.7,1988.6,2.32991]
[1742618566106,3.04759882,1988.7,1988.6,1.3238]
[1742618568704,1.00611,1988.6,1988.5,3.2078]
[1742618568911,11.54671,1988.6,1988.5,3.2078]
[1742618572113,1.00616,1988.5,1988.4,1.35573882]
[1742618572410,3.67106,1988.5,1988.4,1.35573882]
[1742618573406,3.67106,1988.5,1988.4,2.36194882]
[1742618573407,1.00616,1988.5,1988.4,2.36194882]
[1742618573603,1.00616,1988.5,1988.4,3.70584882]
[1742618576620,5.968,1988.6,1988.5,1.00616]
[1742618576814,5.968,1988.6,1988.5,2.39436]
[1742618577615,6.97411,1988.6,1988.5,2.39436]
[1742618577821,5.968,1988.6,1988.5,2.39436]
[1742618578027,5.968,1988.6,1988.5,5.60216]
[1742618578422,0.00753882,1988.7,1988.6,1.00611]
[1742618578621,1.34593882,1988.7,1988.6,2.39431]
[1742618580430,2.35199882,1988.7,1988.6,2.39431]
[1742618581723,1.34593882,1988.7,1988.6,2.39431]
[1742618582131,2.35199882,1988.7,1988.6,2.39431]
[1742618584527,1.34593882,1988.7,1988.6,2.39431]
[1742618584927,2.35199882,1988.7,1988.6,2.39431]
[1742618585736,1.34593882,1988.7,1988.6,2.39431]
[1742618586935,2.35199882,1988.7,1988.6,1.3882]
[1742618589538,2.35199882,1988.7,1988.6,2.39431]
[1742618589734,2.35199882,1988.7,1988.6,3.05091]
[1742618590037,2.35199882,1988.7,1988.6,2.0448]
[1742618601149,3.02629882,1988.7,1988.6,2.0448]
[1742618602942,0.00753882,1988.7,1988.6,3.05091]
[1742618603541,0.00753882,1988.7,1988.6,9.43571]
[1742618603740,1.00599,1988.9,1988.8,1.00597]
[1742618607254,1.28823882,1989.0,1988.9,1.00596]
[1742618608156,2.29414882,1989.0,1988.9,1.00596]
[1742618611754,0.00753882,1989.0,1988.9,1.00596]
[1742618617660,1.3337,1989.4,1989.3,1.00576]
[1742618617963,1.0057,1989.5,1989.0,2.51476]
[1742618617964,2.39749,1989.5,1989.4,1.00571]
[1742618618161,2.3975,1989.5,1989.2,3.2078]
[1742618618459,2.39751,1989.4,1989.3,2.94961]
[1742618618655,2.39751,1989.4,1989.3,1.9439]
[1742618618862,2.39751,1989.4,1989.3,1.2745]
[1742618619364,2.39751,1989.4,1989.3,2.28026]
[1742618621960,1.3918,1989.4,1989.3,2.28026]
[1742618622158,2.39751,1989.4,1989.3,2.28026]
[1742618624555,3.09161,1989.4,1989.3,2.28026]
[1742618625255,2.0859,1989.4,1989.3,2.28026]
[1742618625658,3.09161,1989.4,1989.3,2.28026]
[1742618632361,2.0859,1989.4,1989.3,2.28026]
[1742618634973,0.00753882,1989.5,1989.4,1.00571]
[1742618635170,0.00753882,1989.5,1989.4,6.87411]
[1742618641174,0.00753882,1989.5,1989.4,3.66631]
[1742618641372,0.00753882,1989.5,1989.4,6.87411]
[1742618652182,2.40088882,1989.5,1989.4,4.5309]
[1742618652382,3.07678882,1989.5,1989.4,4.5309]
[1742618653185,3.07678882,1989.5,1989.4,5.53661]
[1742618655084,3.07678882,1989.5,1989.4,2.32881]
[1742618655582,3.07678882,1989.5,1989.4,5.53661]
[1742618657675,3.07678882,1989.5,1989.4,2.32881]
[1742618661086,2.07113882,1989.5,1989.4,2.32881]
[1742618661589,2.71933882,1989.5,1989.4,2.32881]
[1742618661787,2.71933882,1989.5,1989.4,2.98521]
[1742618662383,3.72498882,1989.5,1989.4,2.98521]
[1742618662582,3.72498882,1989.5,1989.4,2.32881]
[1742618662782,2.71933882,1989.5,1989.4,2.32881]
[1742618663087,1.39523882,1989.5,1989.4,2.32881]
[1742618663387,1.39523882,1989.5,1989.4,2.97291]
[1742618665984,1.39523882,1989.5,1989.4,3.63071]
[1742618665985,0.00753882,1989.5,1989.4,3.63071]
[1742618670694,0.00753882,1989.5,1989.4,6.83851]
[1742618673191,1.3145,1989.7,1989.6,1.0056]
[1742618673396,1.3145,1989.7,1989.6,7.3874]
[1742618673892,1.3145,1989.7,1989.6,8.0874]
[1742618674991,2.6592,1989.7,1989.6,8.0874]
[1742618678402,2.6592,1989.7,1989.6,7.3874]
[1742618678600,3.66475,1989.7,1989.6,7.3874]
[1742618678802,2.6592,1989.7,1989.6,7.3874]
[1742618680006,3.66475,1989.7,1989.6,7.3874]
[1742618680901,2.6592,1989.7,1989.6,7.3874]
[1742618681703,2.6592,1989.7,1989.6,4.1796]
[1742618682406,2.6592,1989.7,1989.6,5.5308]
[1742618683800,3.66475,1989.7,1989.6,2.3568]
[1742618684001,2.6592,1989.7,1989.6,2.3568]
[1742618684399,2.6592,1989.7,1989.6,3.0502]
[1742618688110,1.9929,1989.7,1989.6,3.0502]
[1742618688410,1.3447,1989.7,1989.6,3.0502]
[1742618689710,0.00753882,1989.8,1989.7,1.00555]
[1742618689912,1.36683882,1989.8,1989.7,5.61195]
[1742618690214,1.36683882,1989.8,1989.7,8.78495]
[1742618691520,1.36683882,1989.8,1989.7,9.43805]
[1742618692012,0.00753882,1989.8,1989.7,9.43805]
[1742618693508,0.00753882,1989.8,1989.7,6.23025]
[1742618693717,0.00753882,1989.8,1989.7,9.43805]
[1742618699109,0.00753882,1989.8,1989.7,6.23025]
[1742618699311,0.00753882,1989.8,1989.7,9.43805]
[1742618700619,0.00753882,1989.8,1989.7,5.61195]
[1742618700809,0.69393882,1989.8,1989.7,8.78495]
[1742618701015,0.00753882,1989.8,1989.7,8.78495]